Cogmind - Beta 15 @@@ ROGUE MODE // 2025.06.07 @ 22:51:05 Player: A Certain Magical Minus Result: Destroyed self with Mini Grenade Launcher Performance ------------- Evolutions (0) 0 Regions Visited (4) 800 Robots Destroyed (10) 50 Value Destroyed (247) 247 Prototype IDs (0) 0 Alien Tech Used (0) 0 Bonus (0) 0 TOTAL SCORE: 1097 Bonus ------- None Cogmind --------- Core Integrity 0/250 Matter 200/300 Energy 100/100 System Corruption 4% Temperature Warm (130) Movement Core (100) Ox1 Location -9/Mines Parts ------- > --- POWER (1) -------- (None) > --- PROPULSION (2) --- (None) > --- UTILITY (2) ------ Small Storage Unit > --- WEAPON (2) ------- Mini Grenade Launcher > --- INVENTORY (8) ---- Nuclear Core Assault Rifle Light Assault Rifle Mining Laser Heavy Hammer Peak State ------------ > --- POWER ------------ Light Ion Engine > --- PROPULSION ------- Aluminum Leg Aluminum Leg > --- UTILITY ---------- Small Storage Unit Signal Interpreter > --- WEAPON ----------- Makeshift Shrapnel Gun Mini Grenade Launcher > --- INVENTORY -------- Light Ion Engine Nuclear Core EM Shotgun Medium Laser Assault Rifle Light Assault Rifle Grenade Launcher Mining Laser [Rating: 12] Favorites ----------- Power Light Ion Engine Engine Light Ion Engine Propulsion Aluminum Leg Leg Aluminum Leg Utility Small Storage Unit Storage Small Storage Unit Processor Signal Interpreter Weapon Mini Grenade Launcher Energy Gun EM Shotgun Ballistic Gun Makeshift Shrapnel Gun Launcher Mini Grenade Launcher Build | -11 -10 -10 -10 -9 ------- Run | Yrd Mat Min Exi Min Slots Evolved . | . . . . . Power . | . . . . . Propulsion . | . . . . . Utility . | . . . . . Weapon . | . . . . . Parts Attached 14 | 6 4 1 . 3 Power 2 | 1 . . . 1 Engine 2 | 1 . . . 1 Core . | . . . . . Reactor . | . . . . . Propulsion 3 | 2 . . . 1 Treads . | . . . . . Leg 3 | 2 . . . 1 Wheel . | . . . . . Hover . | . . . . . Flight . | . . . . . Utility 2 | 1 1 . . . Device . | . . . . . Storage 1 | 1 . . . . Processor 1 | . 1 . . . Hackware . | . . . . . Protection . | . . . . . Artifact . | . . . . . Weapon 7 | 2 3 1 . 1 Energy Gun 1 | . 1 . . . Energy Cannon . | . . . . . Ballistic Gun 3 | 2 . 1 . . Ballistic Cannon . | . . . . . Launcher 3 | . 2 . . 1 Special Weapon . | . . . . . Impact Weapon . | . . . . . Slashing Weapon . | . . . . . Piercing Weapon . | . . . . . Special Melee Weapon . | . . . . . Unidentified Prototypes . | . . . . . Parts Lost 8 | . . . . 8 Power 2 | . . . . 2 Propulsion 2 | . . . . 2 Utility 1 | . . . . 1 Weapon 3 | . . . . 3 Highest Loss Streak 8 | . . . . 8 To Critical Strikes . | . . . . . Average Backups 6 | 1 3 6 8 7 Power 1 | . 1 1 1 1 Propulsion . | . . . . . Utility . | . . . . . Weapon 5 | . 2 5 6 5 Tool/Special . | . . . . . Unused Backups 5 | . . . 1 4 Power 1 | . . . . 1 Propulsion . | . . . . . Utility . | . . . . . Weapon 4 | . . . 1 3 Tool/Special . | . . . . . Average Slot Usage (%) 98 | . 92 100 100 93 Engine 13 | . 14 14 14 13 Leg 27 | . 28 28 28 25 Storage 14 | . 14 14 14 14 Processor 12 | . 7 14 14 12 Energy Gun 3 | . 6 12 . . Ballistic Gun 10 | . 10 1 14 13 Launcher 13 | . 12 14 14 14 Peak Build Rating 12 | 6 9 11 12 12 Average Rating 10 | 4 7 9 11 11 On Entrance 7 | . 6 9 11 12 Naked Turns . | . . . . . Heaviest Build 14 | 11 14 12 11 14 Greatest Support 20 | 20 20 20 20 20 Greatest Overweight (x) 2 | 1 . . . 2 Average Overweight (x) . | . . . . . Largest Inventory Capacity 8 | 8 8 8 8 8 Average Capacity 7 | 7 8 8 8 8 Most Carried 8 | 3 6 8 8 8 Average Carried 6 | 1 3 6 7 7 Final Capacity 8 | 8 8 8 8 8 Final Carried 8 | 2 6 8 8 5 Class Distribution -------------------- 100% | Mutant Dominant Class ---------------- Mutant | -10/Materials Mutant | -10/Mines Mutant | -10/Exiles Mutant | -9/Mines Resources | -11 -10 -10 -10 -9 ----------- Run | Yrd Mat Min Exi Min Matter Collected 438 | 230 11 26 50 121 Remotely . | . . . . . Salvage Created 251 | . 11 59 . 181 Parts 18 | . 2 3 . 13 Haulers Intercepted . | . . . . . Recyclers Shooed . | . . . . . Parts Field Recycled . | . . . . . Retrieved Matter . | . . . . . Parts Self-Destructed . | . . . . . Prevented . | . . . . . Kills | -11 -10 -10 -10 -9 ------- Run | Yrd Mat Min Exi Min Combat Hostiles Destroyed 18 | . . 2 . 16 Guns 2 | . . . . 2 AOE 16 | . . 2 . 14 Classes Destroyed 5 | . 1 1 . 3 Builder 1 | . . . . 1 Watcher 1 | . 1 . . . Swarmer 3 | . . . . 3 Grunt 5 | . . 2 . 3 Assembled 10 | . . . . 10 Best Kill Streak 10 | . 1 2 . 10 Combat Bots Only 10 | . . 2 . 10 Max Kills in Single Turn 3 | . 1 1 . 3 Gunslinging . | . . . . . Exploded 3 | . . 1 . 3 Melee . | . . . . . Uniques/NPCs Destroyed . | . . . . . Combat | -11 -10 -10 -10 -9 -------- Run | Yrd Mat Min Exi Min Hostile Shots Fired 55 | . . 6 . 49 Missed 16 | . . 3 . 13 Hits 39 | . . 3 . 36 Melee 5 | . . . . 5 Projectile 34 | . . 3 . 31 AOE 4 | . . . . 4 Damage Taken 1019 | . . 101 . 918 Core 294 | . . 45 . 249 Absorbed by Shields . | . . . . . Core Remaining (%) 100 | 100 . . . . Volleys Fired 18 | . 1 4 . 13 Largest 2 | . 2 2 . 2 Hottest 75 | . 75 75 . 63 Shots Fired 30 | . 2 8 . 20 Gun 14 | . 1 4 . 9 Cannon . | . . . . . Launcher 16 | . 1 4 . 11 Special . | . . . . . Kinetic 9 | . . . . 9 Thermal . | . . . . . Explosive 16 | . 1 4 . 11 Electromagnetic 5 | . 1 4 . . Robot Hit Streak 4 | . 1 2 . 4 Robot Miss Streak 7 | . 1 3 . 7 Penetration Max . | . . . . . Secondary Targets . | . . . . . Shots Hit Robots 17 | . 1 6 . 10 Core Hits 33 | . 1 5 . 27 Critical Kills . | . . . . . Critical Parts Destroyed . | . . . . . Critical Strikes . | . . . . . Melee Attacks . | . . . . . Impact . | . . . . . Slashing . | . . . . . Piercing . | . . . . . Sneak Attacks . | . . . . . Combat Hostiles . | . . . . . Follow-up Attacks . | . . . . . Damage Inflicted 1192 | . 14 221 . 957 Guns 128 | . 14 37 . 77 Cannons . | . . . . . Explosions 1061 | . . 184 . 877 Melee . | . . . . . Ramming 3 | . . . . 3 Kinetic 77 | . . . . 77 Thermal . | . . . . . Explosive 1061 | . . 184 . 877 Electromagnetic 51 | . 14 37 . . Impact . | . . . . . Slashing . | . . . . . Piercing . | . . . . . Highest Corruption 4 | . . . . 4 Average Corruption 4 | . . . . 4 Corruption Purged . | . . . . . Corruption Blocked . | . . . . . Effects 1 | . . . . 1 Heat Flow Errors 1 | . . . . 1 Overload Shots . | . . . . . Overflow Damage 49 | . . . . 49 Projectiles . | . . . . . Explosions 49 | . . . . 49 Melee . | . . . . . Knockbacks . | . . . . . Impact . | . . . . . Kinetic . | . . . . . Secondary . | . . . . . Self-Inflicted Damage 336 | . . 57 . 279 Shots 10 | . . 3 . 7 Rammed . | . . . . . Targets Rammed 1 | . . . . 1 Kicked 1 | . . . . 1 Crushed . | . . . . . Highest Temperature 255 | . 15 69 . 255 Average Temperature 66 | . 10 40 . 131 Received Heat Transfer 67 | . . 27 . 40 Siege Activations . | . . . . . Martial Activations . | . . . . . Shielding Activations . | . . . . . Robots Disrupted . | . . . . . Combat Hostiles . | . . . . . Robots Corrupted . | . . . . . Combat Hostiles . | . . . . . Parts Fried . | . . . . . Impact Corruptions . | . . . . . Robots Melted . | . . . . . Combat Hostiles . | . . . . . Parts Melted . | . . . . . Heat Transferred . | . . . . . Parts Sabotaged . | . . . . . Parts Stolen . | . . . . . Parts Stripped . | . . . . . Power Chain Reactions . | . . . . . Alert | -11 -10 -10 -10 -9 ------- Run | Yrd Mat Min Exi Min Maximum Alert Level . | . . . . . Low Security (%) 100 | 100 100 100 . 100 Level 1 . | . . . . . Level 2 . | . . . . . Level 3 . | . . . . . Level 4 . | . . . . . Level 5 . | . . . . . High Security . | . . . . . Max Security . | . . . . . Peak Influence 139 | . 13 76 . 139 Initial . | . . . . . Average 27 | . . 17 . 83 Influence Increases 299 | . 13 76 . 210 Destroy 0b10 Robot/C 160 | . . 40 . 120 Destroy 0b10 Robot/NC 10 | . 5 . . 5 Destroy Leader 32 | . 2 10 . 20 Destroy Structure 97 | . 6 26 . 65 Influence Decreases 259 | . 13 76 . 170 Time Decay 179 | . 13 76 . 90 Lost Part 80 | . . . . 80 Squads Dispatched 1 | . . . . 1 Investigation . | . . . . . Extermination . | . . . . . Reinforcement 1 | . . . . 1 Assault . | . . . . . Garrison . | . . . . . Intercept . | . . . . . Searches Triggered . | . . . . . Construction Impeded 1 | . . . . 1 Haulers Reinforced . | . . . . . Active Scanning Responses . | . . . . . Cargo Convoy Interrupts . | . . . . . Stealth | -11 -10 -10 -10 -9 --------- Run | Yrd Mat Min Exi Min Distress Signals 1 | . . . . 1 Communications Jammed . | . . . . . Distress Signals . | . . . . . Times Spotted 26 | . 2 2 . 22 Peak Tracking Total 14 | . 1 2 . 14 Tactical Retreats 1 | . . . . 1 Traps | -11 -10 -10 -10 -9 ------- Run | Yrd Mat Min Exi Min Traps Triggered . | . . . . . Indirectly . | . . . . . Trap Hack Attempts . | . . . . . Triggered . | . . . . . Disarmed . | . . . . . Reprogrammed . | . . . . . Reused . | . . . . . Traps Extracted . | . . . . . Installed . | . . . . . Triggered . | . . . . . Machines | -11 -10 -10 -10 -9 ---------- Run | Yrd Mat Min Exi Min Machines Disabled . | . . . . . Max in Single Turn . | . . . . . Machines Repaired . | . . . . . Machines Dismantled . | . . . . . Machines Sabotaged . | . . . . . Overloaded Fab Kills . | . . . . . Hacking | -11 -10 -10 -10 -9 --------- Run | Yrd Mat Min Exi Min Machines Accessed 1 | . . . 1 . Terminals . | . . . . . Fabricators . | . . . . . Repair Stations . | . . . . . Recycling Units . | . . . . . Scanalyzers . | . . . . . Garrison Access . | . . . . . Total Hacks 23 | . . . 23 . Successful 23 | . . . 23 . Failed . | . . . . . Catastrophic . | . . . . . Database Lockouts . | . . . . . Manual . | . . . . . Terminals . | . . . . . Fabricators . | . . . . . Repair Stations . | . . . . . Recycling Units . | . . . . . Scanalyzers . | . . . . . Garrison Access . | . . . . . Terminal Hacks 23 | . . . 23 . Record 23 | . . . 23 . Fabricator Hacks . | . . . . . Repair Station Hacks . | . . . . . Recycling Unit Hacks . | . . . . . Scanalyzer . | . . . . . Garrison Access Hacks . | . . . . . Unauthorized Hacks . | . . . . . Terminals . | . . . . . Fabricators . | . . . . . Repair Stations . | . . . . . Recycling Units . | . . . . . Scanalyzers . | . . . . . Garrison Access . | . . . . . Data Cores Recovered . | . . . . . Used . | . . . . . Hacking Detections . | . . . . . Full Trace Events . | . . . . . Feedback Events . | . . . . . Feedback Blocked . | . . . . . Robot Schematics Acquired . | . . . . . Robots Built . | . . . . . Authchips . | . . . . . Time . | . . . . . Total Robot Build Rating . | . . . . . Part Schematics Acquired . | . . . . . Parts Built . | . . . . . Authchips . | . . . . . Time . | . . . . . Total Part Build Rating . | . . . . . Parts Repaired . | . . . . . Time . | . . . . . Parts Recycled . | . . . . . Recycled Matter . | . . . . . Retrieved Matter . | . . . . . Retrieved Components . | . . . . . Parts Scanalyzed . | . . . . . Part Schematics Acquired . | . . . . . Parts Damaged . | . . . . . Bothacking | -11 -10 -10 -10 -9 ------------ Run | Yrd Mat Min Exi Min Used RIF Installer . | . . . . . Robots Hacked . | . . . . . Non-combat . | . . . . . Combat . | . . . . . Robot Hacks Applied . | . . . . . Relay Couplers Released . | . . . . . Fabnet Peak Effective % . | . . . . . Robots Rewired . | . . . . . Allies Hacked . | . . . . . Hacks Repelled . | . . . . . Allies | -11 -10 -10 -10 -9 -------- Run | Yrd Mat Min Exi Min Total Allies 2 | . . 2 . . Largest Group 2 | . . 2 2 . Highest-Rated Group 42 | . . 42 42 . Highest-Rated Ally 31 | . . 31 31 . Total Orders . | . . . . . Ally Attacks . | . . . . . Total Damage . | . . . . . Kills . | . . . . . Allies Corrupted . | . . . . . Allies Melted . | . . . . . Intel | -11 -10 -10 -10 -9 ------- Run | Yrd Mat Min Exi Min Active Infowar (turns) . | . . . . . Robot Analysis Total . | . . . . . Derelict Logs Recovered 2 | . . 1 . 1 Drone Launches . | . . . . . Drone Recoveries . | . . . . . Exploration | -11 -10 -10 -10 -9 ------------- Run | Yrd Mat Min Exi Min Turns Passed 1426 | 73 198 317 654 184 Spaces Moved 1116 | 52 154 251 542 117 Core 13 | 7 . . . 6 Treads . | . . . . . Legs 1103 | 45 154 251 542 111 Wheels . | . . . . . Hover . | . . . . . Flight . | . . . . . Fastest Speed 50 | 50 120 120 120 100 Average Speed 119 | 115 120 120 120 119 Slowest Speed 150 | 120 120 120 120 150 Overloaded Moves . | . . . . . Propulsion Burnouts . | . . . . . Robots Hopped . | . . . . . Potential Cave-ins . | . . . . . Cave-ins Triggered . | . . . . . Exploration Rate (%) 34 | 4 26 28 80 35 Regions Visited 4 Branch Regions 3 Pre-discovered Areas 1 | . . . 1 . Known Exits Taken 3 | . 1 1 1 . Unknown Exits Taken 1 | 1 . . . . Scrap Searched 1 | . . . . 1 Spaces Dug . | . . . . . Terrain Destroyed 144 | . 8 47 . 89 Melee . | . . . . . Projectile . | . . . . . AOE 144 | . 8 47 . 89 Terrain Rammed . | . . . . . Walls Destroyed . | . . . . . Machines Disabled . | . . . . . Actions | -11 -10 -10 -10 -9 --------- Run | Yrd Mat Min Exi Min Total 1180 | 65 166 259 546 144 Wait . | . . . . . Move 1112 | 51 153 250 541 117 Hop . | . . . . . Pick Up 21 | 8 5 3 1 4 Fast Attach 1 | . . . 1 . Attach 15 | 6 4 1 . 4 Detach 3 | . 3 . . . Swap 1 | . . . . 1 Drop 7 | . . 1 2 4 Fire 18 | . 1 4 . 13 Melee . | . . . . . Ram . | . . . . . Kick 1 | . . . . 1 Crush . | . . . . . Escape Stasis . | . . . . . Rewire 1 | . . . 1 . Trap . | . . . . . Miscellaneous . | . . . . . Route ------- -11/Scrapyard -10/Materials -10/Mines (discovered 2 exits: [*Mat] / *Exi) -10/Exiles (discovered 2 exits: *Min x2) -9/Mines History --------- Turn | Location | Event 6 | -11/Scrapyard | Discovered new exit (range 15) 74 | -11/Scrapyard | Entered Materials 173 | -10/Materials | Discovered new exit (range 16) 270 | -10/Materials | Identified exit to Mines 272 | -10/Materials | Entered Mines 274 | -10/Mines | Met a Derelict bent on vengeance 311 | -10/Mines | Build established: Mutant 509 | -10/Mines | Discovered new exit (range 12) 552 | -10/Mines | A weapon hastily lodged in a ceiling crevice suddenly fell to the ground 576 | -10/Mines | Deemed a non-threat by the Exiles lab entrance 577 | -10/Mines | Discovered new exit (range 5) 581 | -10/Mines | Identified exit to Exiles 589 | -10/Mines | Entered Exiles 589 | -10/Exiles | Accompanied by 2 allies 617 | -10/Exiles | Discovered new exit (range 15) 619 | -10/Exiles | Led the pair of lost Derelicts to a safe place 629 | -10/Exiles | Met 8R-AWN 651 | -10/Exiles | Met EX-HEX 715 | -10/Exiles | Met EX-DEC 776 | -10/Exiles | Learned location of Zion (-7) 860 | -10/Exiles | Discovered new exit (range 14) 987 | -10/Exiles | Visited The Gauntlet 1242 | -10/Exiles | Identified exit to Mines 1243 | -10/Exiles | Entered Mines 1309 | -9/Mines | Learned Materials stockpile data 1380 | -9/Mines | Assembled infested the area 1381 | -9/Mines | Received a Rocket Launcher from a helpful Derelict 1411 | -9/Mines | Core integrity fell below 50% 1419 | -9/Mines | Core integrity fell below 20% 1427 | -9/Mines | Destroyed self with Mini Grenade Launcher Last Messages --------------- as-52865 destroyed. as-90327 destroyed. as-14137 destroyed. The unstable cave ceiling collapses. Grenade Launcher destroyed. K-01 Serf collects debris. Rocket Launcher destroyed. as-92549 destroyed. as-73096 destroyed. C-30 ARC bursts open, deploying its payload. D-53 Grenadier unfolds itself. K-01 Serf collects debris. as-36625 destroyed. as-79978 destroyed. System corrupted: Heat flow error (+260). Lgt. Ion Engine destroyed. The unstable cave ceiling collapses. K-01 Serf collects debris. The unstable cave ceiling collapses. Destroyed Asb. Hover Unit. Map ----- +----------------------------------------------------+ | ?????????????????????????????????????????????????? | | ?????????????????????????????????????????????????? | | ?????????????????????????????????????????????????? | | ?????????????????????????????????????????????????? | | ?????????????????????????????????????????????????? | | ?????????????????????????????????????????????????? | | ?????????????????????????????????????????????????? | | ?????????????????????????????????????????????????? | | ?????????????????????????????????????????????????? | | ?????????????????????????????????????????????????? | | ?????????????????????????????????????????????????? | | ????????????????????????????? ???????????????????? | | ???????????????????????????? ##?????????????????? | | ???????????????????????????? ##????????????????? | | ??????????????????????????? ????????????????? | | ??????????????????????????? ?????????????????? | | ?????????????????????#????? < #?????????????????? | | ##?????????####??????# ???? #?????????????????? | | #????????? #??????? ???? #?????????????????? | | #?????????# #??????? #### ??????????????????? | | ##?????????# #???????? a ???????????????????? | | #??????????#$ #???????? %????????????????????? | | #??????????# #????????# ##???????????????????? | | #??????????# #???????## ##??????????????????? | | ???????????# #???????# a ####???????????????? | | ?####??????# #?????### @ #???????????????? | | ## ##?????# #????## ## #???????????????? | | # ##???## ###### #?????????????????? | | ##### # # #???????????????? | | "%" # #???????????????? | | " [ d #???????????????? | | ##### dk # #?????????????? | | #??## #?# #?????????????? | | #???# ## ####???#?????????????? | | #??# #### #???????????????????? | | ## ##?# ##??#### #???????????????????? | | #######?# ##??????## ##???????????????????? | | ##???????# ##????????## #????????????????????? | | #????????# ???????????? #????????????????????? | | ?????????## ???????????? #???????????????????? | | ??????????###???????????? #??????????????????? | | ????????????????????????? #?????????????????? | | ????????????????????????? ?????????????????? | | ????????????????????????? ##????????????????? | | ?????????????????????????? ###?????????????????? | | ?????????????????????????????#???????????????????? | | ?????????????????????????????????????????????????? | | ?????????????????????????????????????????????????? | | ?????????????????????????????????????????????????? | | | +----------------------------------------------------+ Best States ------------- Heat Dissipation 25 Energy Generation 10 Energy Capacity 125 Matter Stores 300 Matter Capacity 300 Sight Range 16 Terrain Scan Density 10 Evasion (%) 55 Item Schematics ----------------- None Robot Schematics ------------------ None Fabricated ------------ Nothing Repaired ---------- Nothing Alien Tech Used ----------------- None Achievements -------------- Let's See Who's Tougher Librarian Tourist Challenges ------------ None Game ------ Seed RainbowBarrageDissipator Manual? 0 Play Time 00:25:53 Cumulative 1.7 hours Start 2025.06.07 @ 22:17:56 End 2025.06.07 @ 22:51:05 Sessions 1 Manual Loads 0 Difficulty Rogue Special Mode None Game No. 5 Rogue 5 Adventurer 0 Explorer 0 Win Type - Total 0 Types 0/0/0/0/0/0/0/0/0/0 Lore% 3 Gallery% 3 Achievement% 5 Wizard Run 0 Options --------- Layout 1 ASCII 0 Keyboard 0 Movement Mouse Keybinds 0 Fullscreen 1 Font 24/Smallcaps Map View 25x17 Zoom Use 99% Tactical HUD 0 Map Filters NONE Filters NONE Steam 1 RUN: 069bf765-689b-4c26-88ee-10816621a34e